bitfinex/quotes_ETHUSD_20240713
["timestamp","ask_amount","ask_price","bid_price","bid_amount"]
[1720900497271,1.09271094,3171.1,3170.8,2.20763]
[1720900497461,1.09271094,3171.0,3170.8,2.20763]
[1720900497664,1.09271094,3170.9,3170.8,2.20763]
[1720900498194,1.09271094,3170.9,3170.8,9.499044]
[1720900498374,1.09271094,3170.9,3170.8,13.049044]
[1720900499760,2.4174,3171.9,3171.7,2.207]
[1720900499966,1.09240473,3171.8,3171.7,2.207]
[1720900500384,2.4174,3171.9,3171.7,2.207]
[1720900500573,1.09242515,3171.8,3171.7,2.207]
[1720900502063,1.09242515,3171.8,3171.5,2.20715]
[1720900502411,2.4174,3171.9,3171.5,2.2071]
[1720900502412,1.09242515,3171.7,3171.5,2.2071]
[1720900502569,1.09242515,3171.8,3171.5,2.2071]
[1720900503199,1.09249097,3171.7,3171.5,2.2071]
[1720900503494,2.4174,3171.9,3171.5,2.2071]
[1720900503666,1.09249059,3171.8,3171.5,2.2071]
[1720900504807,1.09249059,3171.8,3171.6,2.20708]
[1720900506300,1.09244988,3171.7,3171.6,2.20708]
[1720900509465,2.4174,3171.6,3171.2,2.20734]
[1720900509667,1.09250804,3171.5,3171.3,2.20729]
[1720900509899,1.09250804,3171.4,3171.3,2.20729]
[1720900510100,1.09250804,3171.5,3171.3,2.20729]
[1720900512803,2.4174,3171.6,3171.3,2.20729]
[1720900513109,1.09253399,3171.5,3171.3,2.20729]
[1720900513269,2.4174,3171.6,3171.3,2.20729]
[1720900513597,1.09254628,3171.5,3171.3,2.20729]
[1720900513802,1.09254628,3171.4,3171.3,2.20729]
[1720900516429,1.09253981,3171.4,3171.3,2.20729]
[1720900519515,2.67408425,3171.8,3171.3,2.20729]
[1720900519682,2.67408425,3171.8,3171.4,2.20721]
[1720900519683,2.94149268,3171.8,3171.4,2.20721]
[1720900519890,1.09254583,3171.7,3171.4,2.20721]
[1720900520080,1.09254583,3171.6,3171.2,2.20731]
[1720900520407,1.09254583,3171.5,3171.3,2.20725]
[1720900520577,1.09254583,3171.7,3171.3,2.20725]
[1720900521084,1.09254583,3171.7,3171.3,2.20728]
[1720900522326,1.49594968,3171.7,3171.3,2.20728]
[1720900522475,1.09254583,3171.6,3171.3,2.20728]
[1720900522895,0.40340385,3171.7,3171.3,2.20728]
[1720900523187,1.09253898,3171.6,3171.3,2.20728]
[1720900523386,2.67408425,3171.8,3171.3,2.20728]
[1720900523689,2.2734,3171.6,3171.2,2.20735]
[1720900523888,1.09253855,3171.5,3171.2,2.20735]
[1720900525215,1.09253855,3171.4,3171.3,2.20729]
[1720900525411,1.09253855,3171.5,3171.3,2.20729]
[1720900525615,1.09253855,3171.4,3171.3,2.20729]
[1720900525819,1.09253855,3171.5,3171.3,2.20729]
[1720900526005,1.09256356,3171.4,3171.3,2.20729]
[1720900526322,1.09256155,3171.4,3171.3,2.20729]
[1720900526988,2.2734,3171.6,3171.3,2.20729]
[1720900527315,1.09256074,3171.5,3171.3,2.20729]
[1720900527483,1.09256074,3171.4,3171.3,2.20729]
[1720900529900,1.09252827,3171.4,3171.3,2.20729]
[1720900533222,2.60368425,3171.8,3171.4,2.20718]
[1720900533499,3.40973417,3171.7,3171.4,2.20718]
[1720900533703,3.41003754,3171.6,3171.4,4.41436]
[1720900533903,1.09250768,3171.5,3171.4,2.20718]
[1720900534716,1.09250768,3171.5,3171.4,4.46918]
[1720900534935,1.09250768,3171.5,3171.4,7.425045]
[1720900535241,1.09250768,3171.5,3171.4,12.632265]
[1720900536300,1.09250768,3171.5,3171.4,15.389485]
[1720900536500,0.33021817,3172.5,3172.4,2.20653]
[1720900536737,1.42240237,3172.5,3172.4,2.20653]
[1720900537852,1.0921842,3172.5,3172.4,5.745371]
[1720900538163,1.0921842,3172.5,3172.4,13.247001]
[1720900539263,1.0921842,3172.5,3172.4,15.453531]
[1720900539423,0.1150734,3172.8,3172.4,15.453531]
[1720900539424,0.1150734,3172.8,3172.7,6.61896]
[1720900539607,1.20693769,3172.8,3172.7,7.42896]
[1720900539804,1.20693769,3172.8,3172.7,8.171856]
[1720900539805,1.20693561,3172.8,3172.7,8.171856]
[1720900540732,0.1150734,3172.8,3172.7,8.171856]
[1720900540926,0.0650734,3172.8,3172.7,8.171856]
[1720900543718,0.0650734,3172.8,3172.7,12.989676]
[1720900543947,0.0650734,3172.8,3172.7,16.539876]
[1720900544934,0.0650734,3172.8,3172.7,15.729876]
[1720900545153,0.0650734,3172.8,3172.7,16.539876]
[1720900545390,0.0095807,3173.4,3173.3,6.6177]
[1720900545583,0.0095807,3173.4,3173.3,14.155169]
[1720900546986,0.0095807,3173.4,3173.3,13.345169]
[1720900547182,0.0095807,3173.4,3173.3,5.2059]
[1720900547486,0.0095807,3173.4,3173.3,4.4118]
[1720900547775,0.0095807,3173.4,3173.3,5.2059]
[1720900550783,0.0095807,3173.4,3173.3,2.2059]
[1720900557974,2.2736807,3173.4,3172.7,7.42]
[1720900558303,1.09194418,3173.3,3172.7,7.42]
[1720900558468,1.09194418,3173.2,3172.8,3.0]
[1720900558804,3.39204877,3173.4,3172.8,3.0]
[1720900558805,1.09194418,3173.1,3172.8,3.0]
[1720900559000,1.09194418,3173.3,3172.8,3.0]
[1720900559158,1.09194418,3173.2,3172.5,2.20645]
[1720900559363,1.09194418,3173.2,3172.5,5.20645]
[1720900559558,3.0836807,3173.4,3172.5,5.20645]
[1720900559760,1.09198808,3173.1,3172.5,5.20645]
[1720900559996,1.09198808,3173.0,3172.6,0.81]
[1720900560298,2.2736807,3173.4,3172.6,3.81]
[1720900560518,1.09196838,3173.3,3172.6,3.81]
[1720900560662,1.09196838,3173.2,3172.6,3.81]
[1720900561003,1.09196838,3173.1,3172.6,3.81]
[1720900561161,1.09196838,3173.3,3172.6,3.71]
[1720900562336,1.09197289,3173.2,3172.6,3.71]
[1720900562533,1.09197289,3173.1,3172.6,3.71]
[1720900562834,1.09197889,3173.0,3172.6,3.71]
[1720900562998,1.09197889,3172.9,3172.6,3.71]
[1720900563182,1.09197889,3172.8,3172.6,3.71]
[1720900563388,1.09197889,3173.3,3172.6,3.0]
[1720900563616,1.09197889,3173.3,3172.5,2.20645]
[1720900563617,0.41756596,3173.2,3172.5,5.20645]
[1720900563813,1.09197889,3173.1,3172.5,5.20645]
[1720900565092,0.41756596,3173.2,3172.5,5.20645]
[1720900565293,1.09200529,3173.1,3172.5,5.20645]
[1720900565602,1.0919905,3173.0,3172.5,5.20645]
[1720900565806,1.0919905,3172.9,3172.5,3.0]
[1720900566121,1.0919905,3172.8,3172.4,2.20651]
[1720900566324,1.0919905,3173.1,3172.5,2.20646]
[1720900566903,1.0919905,3173.1,3172.5,5.20646]
[1720900568939,0.41756596,3173.2,3172.5,5.20646]
[1720900568940,1.09203974,3173.0,3172.5,5.20646]
[1720900569089,1.09203974,3172.9,3172.5,5.20646]
[1720900569291,1.09203974,3172.8,3172.5,5.20646]
[1720900569626,1.09203974,3172.7,3172.5,5.20646]
[1720900569830,1.09203974,3173.3,3172.5,5.808106]
[1720900570003,1.09203974,3173.2,3172.5,5.808106]
[1720900570202,2.27368067,3173.4,3172.6,0.81]
[1720900570203,1.09203974,3173.1,3172.6,0.81]
[1720900570404,1.09203974,3173.0,3172.6,3.81]
[1720900570610,1.09203974,3172.9,3172.8,0.81]
[1720900570796,1.09203974,3172.9,3172.8,4.649321]
[1720900572336,0.00958067,3173.4,3172.8,4.649321]
[1720900572497,1.09193769,3173.3,3172.8,3.81]
[1720900572698,0.00958067,3173.4,3172.8,3.81]
[1720900572938,1.09194126,3173.3,3172.8,3.81]
[1720900573243,1.09194126,3173.2,3172.8,3.0]
[1720900573400,0.00958067,3173.4,3172.8,3.0]
[1720900573401,1.09194126,3173.3,3172.8,3.0]
[1720900575125,1.09194006,3173.2,3172.8,3.0]
[1720900575437,1.09194006,3173.1,3172.8,3.0]
[1720900575669,1.09193422,3173.0,3172.8,3.0]
[1720900575824,1.09193422,3172.9,3172.8,3.0]
[1720900576164,1.09193422,3172.9,3172.7,3.0]
[1720900576308,1.09193422,3172.8,3172.6,2.20639]
[1720900576502,1.09193422,3173.1,3172.6,2.20639]
[1720900577168,1.09193422,3173.1,3172.5,3.0]
[1720900577502,1.09193422,3173.1,3172.5,5.20641]
[1720900578255,1.09193422,3173.3,3172.6,0.81903339]
[1720900578538,1.09193422,3173.2,3172.5,5.20641]
[1720900578728,1.09193422,3173.3,3172.5,5.20641]
[1720900578931,1.09199089,3173.2,3172.5,5.20641]
[1720900579126,1.09199089,3173.1,3172.5,5.20641]
[1720900579363,1.09199089,3173.0,3172.5,5.20641]
[1720900579547,1.09199089,3173.0,3172.5,6.259273]
[1720900579741,1.09199089,3172.9,3172.5,6.259273]
[1720900579961,1.09199089,3172.8,3172.5,6.259273]
[1720900580100,1.09199089,3173.3,3172.5,6.259273]
[1720900581614,1.09199089,3173.2,3172.5,6.259273]
[1720900581815,1.09199089,3173.3,3172.5,6.259273]
[1720900582023,1.09199089,3173.2,3172.5,6.259273]
[1720900582256,0.00958067,3173.4,3172.5,6.259273]
[1720900582416,1.09201083,3173.1,3172.5,6.259273]
[1720900582612,1.09201083,3173.3,3172.6,1.1581493]
[1720900582950,1.092007,3173.2,3172.5,5.20641]
[1720900583150,1.092007,3173.1,3172.5,5.20641]
[1720900583454,1.092007,3173.0,3172.5,5.20641]
[1720900583758,1.092007,3172.9,3172.5,5.20641]
[1720900583951,1.092007,3172.8,3172.5,5.20641]
[1720900584156,1.092007,3172.7,3172.5,6.259273]
[1720900584311,1.092007,3172.6,3172.5,6.259273]
[1720900585254,2.31500427,3173.3,3172.5,6.259273]
[1720900585255,1.092011,3173.2,3172.5,6.259273]
[1720900585454,1.092011,3173.2,3172.5,5.20641]
[1720900585455,1.092011,3173.1,3172.5,5.20641]
[1720900585754,1.09203653,3173.0,3172.5,5.20641]
[1720900585941,1.09203653,3172.9,3172.5,5.20641]
[1720900586138,1.09203653,3173.1,3172.5,5.20641]
[1720900586325,1.09203653,3173.0,3172.5,5.20641]
[1720900586657,1.09203653,3172.9,3172.4,2.3057]
[1720900586954,1.09203653,3172.8,3172.4,2.3057]
[1720900587321,1.09207397,3172.7,3172.4,2.3057]
[1720900587553,1.09207397,3172.6,3172.4,2.3057]
[1720900587719,1.09207397,3172.5,3172.4,2.3057]
[1720900588234,1.09207397,3172.5,3172.4,3.1157]
[1720900588427,1.09207397,3172.5,3172.4,6.1157]
[1720900589261,1.09208852,3172.5,3172.4,6.1157]
[1720900591324,1.09208852,3172.5,3172.4,6.947937]
[1720900592529,1.09198015,3172.5,3172.4,6.947937]
[1720900592833,0.00958067,3173.4,3172.4,6.947937]
[1720900593038,2.31621151,3173.2,3172.4,6.1157]
[1720900593230,1.09197966,3173.1,3172.4,6.1157]
[1720900593437,1.09197966,3173.0,3172.4,8.32222]
[1720900593656,1.09197966,3172.9,3172.4,8.32222]
[1720900593869,1.09197966,3172.8,3172.4,10.117109]
[1720900594037,1.09197966,3173.1,3172.4,10.117109]
[1720900594238,1.09197966,3173.0,3172.4,10.117109]
[1720900594449,1.09197966,3172.9,3172.4,10.117109]
[1720900594771,1.09197966,3172.8,3172.4,10.117109]
[1720900595070,2.31621151,3173.1,3172.4,10.117109]
[1720900595071,1.09197966,3172.7,3172.4,10.117109]
[1720900595231,1.09197966,3173.0,3172.4,10.117109]
[1720900595425,1.09198781,3172.9,3172.4,10.117109]
[1720900595731,1.09198781,3172.8,3172.4,10.117109]
[1720900595926,0.00958067,3173.4,3172.4,10.117109]
[1720900595927,2.31691557,3173.1,3172.4,10.117109]
[1720900596238,1.09198781,3173.0,3172.4,10.117109]
[1720900596433,1.09198781,3172.9,3172.4,10.117109]
[1720900596638,1.09198781,3172.8,3172.4,10.117109]
[1720900596863,1.09198781,3172.7,3172.4,10.117109]
[1720900597047,1.09198781,3173.0,3172.4,10.117109]
[1720900597360,1.09198781,3172.9,3172.4,10.117109]
[1720900597560,1.09198781,3172.8,3172.4,10.117109]
[1720900597727,1.09198781,3172.7,3172.4,10.117109]
[1720900597932,1.09198781,3172.6,3172.4,10.117109]
[1720900598139,1.09198781,3172.5,3172.4,10.117109]
[1720900599409,1.09196566,3172.5,3172.4,10.117109]
[1720900601399,1.09196566,3172.5,3172.4,12.323639]
[1720900601695,1.09196566,3172.5,3172.4,14.530169]
[1720900601841,1.09196566,3172.5,3172.4,15.080169]
[1720900602338,0.00958067,3173.4,3173.1,2.20598]
[1720900602539,1.09183433,3173.3,3173.2,2.3898]
[1720900602992,1.09183275,3173.3,3173.2,2.3898]
[1720900603843,1.09183275,3173.3,3173.2,4.59577]
[1720900605501,1.09183302,3173.3,3173.2,4.59577]
[1720900605749,2.32832665,3173.4,3173.2,4.59577]
[1720900605888,1.09183365,3173.3,3173.2,4.59577]
[1720900608712,1.09183365,3173.3,3173.2,5.40577]
[1720900609089,0.00958067,3173.4,3173.3,2.2059]
[1720900609837,1.10135462,3173.4,3173.3,2.2059]
[1720900612340,0.00958067,3173.4,3173.3,2.2059]
[1720900612838,1.10135311,3173.4,3173.3,2.2059]
[1720900614443,1.10135311,3173.4,3173.2,3.1998]
[1720900614650,1.09177244,3173.3,3173.2,5.40577]
[1720900615027,1.20331513,3174.0,3173.2,5.40577]
[1720900615236,0.47397726,3173.9,3173.2,5.40577]
[1720900619046,1.28397726,3173.9,3173.0,2.384]
[1720900619256,2.3841,3173.8,3173.0,2.384]
[1720900619753,2.3841,3173.8,3173.0,5.384]
[1720900619930,0.64038837,3173.7,3173.0,5.384]
[1720900620129,4.7002139,3173.5,3173.0,3.0]
[1720900620337,4.7002139,3173.5,3172.7,3.81]
[1720900620512,2.3161139,3173.4,3172.7,3.81]
[1720900621541,2.31613704,3173.4,3172.7,3.81]
[1720900621743,2.78616074,3173.4,3172.7,3.0]
[1720900621949,2.3841,3173.2,3172.7,3.0]
[1720900622240,4.700416,3173.2,3172.7,3.0]
[1720900624247,2.316316,3173.1,3172.7,3.0]
[1720900624635,2.31643641,3173.1,3172.7,3.0]
[1720900624846,2.31643961,3173.1,3172.7,3.0]
[1720900625653,2.31643961,3173.0,3172.7,3.0]
[1720900625857,2.31643961,3173.1,3172.7,3.0]
[1720900626057,4.70053961,3173.2,3172.7,3.0]
[1720900627019,4.70053961,3173.2,3172.5,3.81]
[1720900627945,4.70053961,3173.2,3172.5,6.3994]
[1720900628269,2.31626053,3173.2,3172.5,6.3994]
[1720900628454,2.31626053,3173.3,3172.5,6.3994]
[1720900629874,2.31626053,3173.3,3172.8,2.384]
[1720900631452,2.3841,3173.6,3172.8,2.384]
[1720900631693,2.31625632,3173.3,3172.8,2.384]
[1720900632059,2.3162419,3173.3,3172.8,2.384]
[1720900634647,2.31655705,3173.3,3172.8,2.384]
[1720900634986,2.3165573,3173.3,3172.8,2.384]
[1720900636478,2.3165573,3173.2,3172.8,2.384]
[1720900636842,2.3165573,3173.3,3172.8,2.384]
[1720900638174,2.31697433,3173.2,3172.8,2.384]
[1720900638670,2.31697433,3173.3,3172.8,2.384]
[1720900638894,2.31697433,3173.2,3172.8,2.384]
[1720900641450,2.31718191,3173.2,3172.8,2.384]
[1720900642003,2.31716681,3173.2,3172.8,2.384]
[1720900642990,2.31716681,3173.3,3172.8,2.384]
[1720900643163,2.31716681,3173.2,3172.8,2.384]
[1720900644152,2.31716681,3173.3,3172.8,2.384]
[1720900644806,0.81,3173.5,3172.8,2.384]
[1720900644959,2.31718279,3173.3,3172.8,2.384]
[1720900646387,2.31728052,3173.3,3172.8,2.384]
[1720900647460,2.31730028,3173.3,3172.8,2.384]
[1720900647662,2.31730028,3173.3,3172.6,3.0]
[1720900647989,2.31730028,3173.2,3172.6,5.3085]
[1720900648171,2.31730028,3173.2,3172.7,1.091435]
[1720900648372,2.31738907,3173.2,3172.6,2.3085]
[1720900648695,4.59558907,3173.2,3172.6,2.3085]
[1720900648854,2.31738907,3173.1,3172.6,2.3085]
[1720900649060,4.59558907,3173.2,3172.6,2.3085]
[1720900649487,2.31738907,3173.1,3172.6,2.3085]
[1720900650303,2.31738907,3173.1,3172.6,2.30723957]
[1720900650972,2.31738907,3173.2,3172.6,2.30723957]
[1720900651310,0.81,3173.3,3172.6,2.30723957]
[1720900651311,2.31738907,3173.1,3172.6,2.30723957]
[1720900651804,2.31741415,3173.1,3172.6,2.30723957]
[1720900651972,2.31740613,3173.1,3172.6,2.30723957]
[1720900653381,2.31740613,3173.1,3172.3,8.23]
[1720900653382,2.31740613,3172.8,3172.3,9.6955]
[1720900653617,2.31740613,3172.8,3172.3,2.2755]
[1720900653777,2.31740613,3172.7,3172.3,2.2755]
[1720900654823,5.07153599,3173.0,3172.3,2.2755]
[1720900654824,2.3341,3173.0,3172.3,2.2755]
[1720900655119,2.31756521,3172.9,3172.3,2.2755]
[1720900656108,2.31756521,3172.8,3172.3,2.2755]
[1720900657604,2.31756521,3172.6,3172.1,2.4541]
[1720900658239,2.31756349,3172.6,3172.1,2.4541]
[1720900658419,2.31756349,3172.7,3172.1,2.4541]
[1720900658627,2.31756349,3172.6,3172.1,2.4541]
[1720900660244,2.31756349,3172.7,3172.1,2.4541]
[1720900660543,2.31756349,3172.7,3172.1,3.2641]
[1720900661522,0.61808625,3172.9,3172.1,3.2641]
[1720900661848,2.31699133,3172.7,3172.1,3.2641]
[1720900664452,2.31739136,3172.7,3172.1,3.2641]
[1720900664975,2.31739069,3172.7,3172.1,3.2641]
[1720900665619,2.31739069,3172.7,3172.2,2.4541]
[1720900665953,2.31739069,3172.8,3172.2,2.4541]
[1720900668316,0.61808625,3172.9,3172.2,2.4541]
[1720900668564,2.31734674,3172.8,3172.2,2.4541]
[1720900669255,2.31734674,3172.9,3172.2,2.4541]
[1720900670121,2.31734674,3172.8,3172.2,2.4541]
[1720900670723,2.31734674,3172.9,3172.2,2.4541]
[1720900671230,2.31734674,3172.9,3172.4,2.4541]
[1720900671431,2.31734674,3173.0,3172.4,2.4541]
[1720900671638,2.31709022,3173.0,3172.4,2.4541]
[1720900672035,1.14012368,3173.4,3172.4,2.4541]
[1720900672236,2.31702044,3173.0,3172.4,2.4541]
[1720900672534,2.31702044,3173.0,3172.4,3.001165]
[1720900674463,1.14012368,3173.4,3172.4,3.001165]
[1720900674637,2.31715758,3173.0,3172.4,3.001165]
[1720900675159,2.31713164,3173.0,3172.4,3.001165]
[1720900678220,1.14012368,3173.4,3172.4,3.001165]
[1720900678461,2.31729557,3173.0,3172.4,5.207685]
[1720900678627,2.31729557,3173.0,3172.5,2.2717]
[1720900679224,2.31729557,3173.0,3172.6,2.2717]
[1720900679532,2.31729557,3173.1,3172.6,2.2717]
[1720900680660,2.31729557,3173.2,3172.6,2.2717]
[1720900680860,3.06742907,3173.4,3172.6,2.2717]
[1720900680861,2.31729557,3173.1,3172.6,2.2717]
[1720900681081,2.31728831,3173.1,3172.7,2.2717]
[1720900681465,0.33012368,3173.4,3172.7,2.2717]
[1720900681777,2.31730415,3173.1,3172.7,2.2717]
[1720900682779,2.31730415,3173.0,3172.7,2.2717]
[1720900682968,2.31730415,3173.1,3172.7,2.2717]
[1720900684285,2.31750655,3173.1,3172.7,2.2717]
[1720900684980,2.31750655,3173.0,3172.7,2.2717]
[1720900687384,2.31750655,3173.1,3172.7,2.2717]
[1720900687564,2.31771132,3173.1,3172.7,2.2717]
[1720900687882,2.31771132,3173.2,3172.9,2.2717]
[1720900690854,0.33012368,3173.4,3172.9,2.2717]
[1720900691176,2.31768205,3173.2,3172.9,2.2717]
[1720900691379,2.31782275,3173.2,3172.9,2.2717]
[1720900691587,2.31782275,3173.1,3172.9,2.2717]
[1720900693892,0.33012368,3173.4,3172.9,2.2717]
[1720900694053,2.31799442,3173.1,3172.9,2.2717]
[1720900694257,3.06825459,3173.4,3172.9,2.2717]
[1720900694258,0.33012368,3173.4,3172.9,2.2717]
[1720900694457,2.31799626,3173.1,3172.9,2.2717]
[1720900697295,2.31799626,3173.2,3172.9,2.2717]
[1720900697662,2.31790637,3173.1,3172.9,2.2717]
[1720900698287,2.31790637,3173.2,3172.9,2.2717]
[1720900698700,2.31790637,3173.1,3172.9,2.2717]
[1720900699200,2.31790637,3173.2,3172.9,2.2717]
[1720900700809,0.33012368,3173.4,3172.9,2.2717]
[1720900700965,2.31776185,3173.2,3172.9,2.2717]
[1720900701367,2.31774191,3173.2,3172.9,2.2717]
[1720900702008,2.31774191,3173.1,3172.9,2.2717]
[1720900702217,2.31774191,3173.2,3172.9,2.2717]
[1720900704105,2.31770521,3173.2,3172.9,2.2717]
[1720900706211,2.31770521,3173.1,3172.9,2.2717]
[1720900707768,2.31839972,3173.1,3172.9,2.2717]
[1720900711513,2.31932925,3173.1,3172.9,2.2717]
[1720900712016,2.31934627,3173.0,3172.9,2.2717]
[1720900713023,2.31934627,3173.1,3172.9,2.2717]
[1720900713394,2.31934627,3173.0,3172.9,2.2717]
[1720900713931,2.31934627,3173.1,3172.9,2.2717]
[1720900714398,2.31977333,3173.1,3172.9,2.49887]
[1720900714718,2.31977333,3173.1,3173.0,3.1805]
[1720900714895,2.31974166,3173.1,3173.0,0.81]
[1720900715495,2.31974166,3173.1,3173.0,3.1805]
[1720900715743,2.31974166,3173.1,3173.0,3.521267]
[1720900716233,2.31974166,3173.3,3173.0,1.150767]
[1720900716394,2.31974166,3173.3,3173.1,2.3705]
[1720900717193,2.31974166,3173.4,3173.1,2.3705]
[1720900718020,2.31934946,3173.4,3173.1,2.3705]
[1720900718221,2.31934946,3173.4,3173.2,0.3521267]
[1720900721370,0.33007156,3173.8,3173.2,0.3521267]
[1720900721518,0.33007156,3173.8,3173.1,2.3705]
[1720900721519,2.31894867,3173.4,3173.1,2.3705]
[1720900721721,0.33007156,3173.8,3173.1,2.3705]
[1720900722053,2.31884558,3173.4,3173.1,2.3705]
[1720900724335,2.31872437,3173.5,3173.1,2.3705]
[1720900724557,2.31872437,3173.5,3173.2,2.7128267]
[1720900724752,2.3186331,3173.5,3173.2,2.7128267]
[1720900728040,0.33007156,3173.8,3173.2,2.7128267]
[1720900728357,2.31828476,3173.5,3173.2,2.7128267]
[1720900728556,2.31828476,3173.5,3173.4,2.3607]
[1720900729220,2.31828476,3173.5,3173.1,2.3607]
[1720900729899,3.06854543,3173.8,3173.1,2.3607]
[1720900729900,2.31828476,3173.4,3173.1,2.3607]
[1720900730037,2.31828476,3173.4,3172.8,2.3607]
[1720900730224,2.31828476,3173.3,3172.9,1.198696]
[1720900730421,2.31828476,3173.2,3172.9,1.198696]
[1720900731439,2.3186288,3173.2,3172.9,1.198696]
[1720900731839,2.31868097,3173.2,3172.9,1.198696]
[1720900733080,3.06902938,3173.5,3172.8,2.3607]
[1720900733081,2.31868097,3173.1,3172.8,2.3607]
[1720900733979,2.31868097,3173.2,3172.8,2.3607]
[1720900734179,0.33008749,3173.5,3172.8,2.3607]
[1720900734382,2.31883038,3173.2,3172.8,2.3607]
[1720900734746,0.33008749,3173.5,3172.8,2.3607]
[1720900734940,2.31885713,3173.2,3172.8,2.67777]
[1720900738272,2.31892566,3173.1,3172.8,2.3607]
[1720900738707,2.31892566,3173.2,3172.8,2.3607]
[1720900740399,2.31892566,3173.1,3172.8,2.3607]
[1720900740966,2.31901821,3173.1,3172.8,2.3607]
[1720900741192,2.31901821,3173.1,3172.6,3.2409]
[1720900741376,2.4763,3173.2,3172.6,2.4309]
[1720900741574,2.31914505,3173.0,3172.6,2.4309]
[1720900741898,2.31914505,3172.9,3172.6,2.4309]
[1720900742079,2.31914505,3173.0,3172.6,2.4309]
[1720900742279,2.31914505,3172.9,3172.6,2.4309]
[1720900742495,2.31914505,3172.9,3172.3,7.42]
[1720900742672,2.31914505,3172.8,3172.4,3.2409]
[1720900743366,2.31914505,3172.7,3172.4,3.2409]
[1720900743988,2.3188786,3172.7,3172.4,3.2409]
[1720900744706,2.3188786,3172.8,3172.4,3.2409]
[1720900744968,2.3188786,3172.9,3172.4,3.2409]
[1720900745091,2.3188786,3172.8,3172.4,3.2409]
[1720900745289,2.3188786,3172.8,3172.4,4.50399]
[1720900745494,2.3188786,3172.9,3172.4,4.50399]
[1720900745811,2.3188786,3172.8,3172.4,4.50399]
[1720900745987,2.3188786,3172.8,3172.4,3.2409]
[1720900747319,2.4763,3173.2,3172.4,3.2409]
[1720900747612,2.31799586,3172.8,3172.4,3.2409]
[1720900748411,2.31799586,3172.9,3172.4,3.2409]
[1720900748780,2.31799586,3172.8,3172.4,3.2409]
[1720900749310,2.31799586,3172.9,3172.4,3.2409]
[1720900749689,2.31799586,3172.8,3172.4,3.2409]
[1720900750111,2.31799586,3172.9,3172.4,3.2409]
[1720900750705,2.31718508,3172.9,3172.4,3.2409]
[1720900753810,2.31718508,3173.0,3172.4,3.2409]
[1720900754016,5.21347487,3173.2,3172.4,3.2409]
[1720900754017,2.4763,3173.2,3172.4,3.2409]
[1720900754217,2.3168315,3172.9,3172.4,3.2409]
[1720900756260,2.31663015,3172.9,3172.4,3.2409]
[1720900756424,2.31663015,3173.0,3172.4,3.2409]
[1720900757136,2.4763,3173.2,3172.4,3.2409]
[1720900757514,2.31645455,3173.0,3172.4,3.2409]
[1720900759909,2.31645455,3173.1,3172.4,3.2409]
[1720900760751,2.31623948,3173.1,3172.4,3.2409]
[1720900761839,2.31623948,3173.2,3172.4,3.2409]
[1720900762247,2.31623948,3173.2,3172.6,0.81]
[1720900762925,2.31623948,3173.2,3172.7,2.2856]
[1720900764162,2.31626807,3173.1,3172.7,2.2856]
[1720900764526,2.31640307,3173.1,3172.7,2.2856]
[1720900764964,2.31640307,3173.2,3172.7,2.2856]
[1720900766261,2.31640307,3173.1,3172.7,2.2856]
[1720900767441,2.31666802,3173.1,3172.7,2.2856]
[1720900768459,2.4372,3173.4,3172.7,2.2856]
[1720900768773,2.31696363,3173.1,3172.7,2.2856]
[1720900770454,2.31696363,3173.0,3172.7,2.2856]
[1720900770779,2.4372,3173.4,3172.7,2.2856]
[1720900770930,2.31740073,3173.1,3172.7,2.2856]
[1720900771340,2.31740073,3173.0,3172.7,2.2856]
[1720900772358,2.31740073,3172.9,3172.7,2.2856]
[1720900773443,2.31740073,3173.0,3172.7,2.2856]
[1720900773771,2.31740073,3172.9,3172.7,2.2856]
[1720900774172,2.31835715,3172.9,3172.7,2.2856]
[1720900774673,2.31868172,3173.0,3172.7,2.2856]
[1720900774884,2.31868172,3172.9,3172.7,2.2856]
[1720900775293,2.31868172,3173.0,3172.7,2.2856]
[1720900775512,2.31868172,3172.9,3172.7,2.2856]
[1720900777388,6.89214383,3173.5,3172.7,2.2856]
[1720900777590,2.31920567,3172.9,3172.7,2.2856]
[1720900780697,6.89214383,3173.5,3172.7,2.2856]
[1720900781019,2.31965099,3172.9,3172.7,2.2856]
[1720900781520,2.31965099,3172.8,3172.7,2.2856]
[1720900782097,2.31965099,3172.9,3172.7,2.2856]
[1720900782391,2.31965099,3172.8,3172.7,2.2856]
[1720900784169,2.3202556,3172.8,3172.7,2.2856]
[1720900784693,2.32043908,3172.8,3172.7,2.2856]
[1720900785467,2.32043908,3172.8,3172.5,2.4016]
[1720900785767,2.32043908,3172.8,3172.3,9.8216]
[1720900785974,2.32043908,3172.4,3172.3,9.8216]
[1720900786287,0.81,3172.9,3172.3,9.8216]
[1720900786288,2.74101867,3172.6,3172.3,9.8216]
[1720900786482,2.74101867,3172.6,3172.0,2.4016]
[1720900786667,2.32051031,3172.3,3172.0,2.4016]
[1720900787070,4.10185634,3172.9,3172.0,2.4016]
[1720900787319,2.3205,3172.3,3172.0,2.4016]
[1720900787464,2.3205,3172.3,3172.0,3.2116]
[1720900789459,2.3205,3172.4,3172.0,3.2116]
[1720900789668,2.3205,3172.5,3172.0,3.2116]
[1720900790284,2.3205,3172.5,3172.1,0.32116]
[1720900790799,2.31917554,3172.5,3172.1,0.32116]
[1720900792275,2.31917554,3172.5,3172.0,3.2116]
[1720900793387,2.31917554,3172.4,3172.0,3.2116]
[1720900793945,2.31865378,3172.5,3172.0,3.2116]
[1720900794414,2.31862609,3172.5,3172.0,3.2116]
[1720900797207,2.31817275,3172.5,3172.0,3.2116]
[1720900797600,2.31817275,3172.6,3172.0,3.2116]
[1720900798233,2.31817275,3172.6,3172.2,0.81]
[1720900800546,2.4174,3173.0,3172.2,0.81]
[1720900800859,2.31779364,3172.5,3172.2,0.81]
[1720900801299,2.31779364,3172.5,3172.0,3.2116]
[1720900801495,2.31779364,3172.4,3172.0,3.2116]
[1720900801897,2.31779364,3172.4,3171.7,9.7615]
[1720900802103,2.31779364,3172.3,3171.7,9.7615]
[1720900802535,2.31779364,3172.4,3171.7,9.7615]